[Event "European Womens-ch 2025"]
[Site "Rhodes"]
[Date "2025.04.11"]
[Round "11.65"]
[White "Korinioti, Myrto"]
[Black "Kaka, Rengina Tsampika"]
[Result "1-0"]
[Annotator "NA"]
[ECO "B01"]
[WhiteElo "1667"]
[BlackElo "1509"]
[PlyCount "121"]
[EventDate "2025.03.29"]
[EventType "swiss"]
[EventCountry "GRE"]
[SourceTitle "playchess.com"]
[Source "ChessBase"]
[SourceQuality "1"]
[TimeControl "40/5400+30:1800+30"]

1. e4 {[%emt 0:00:11]} d5 {[%emt 0:00:12]} 2. exd5 {[%emt 0:00:14]} Qxd5 {[%emt 0:00:08]} 3. Nc3 {[%emt 0:00:19]} Qa5 {[%emt 0:00:14]} 4. d4 {[%emt 0:00:33]} Nf6 {[%emt 0:00:30]} 5. Bc4 {[%emt 0:00:19]} Bf5 {[%emt 0:00:49]} 6. Bd2 {[%emt 0:00:36]} c6 {[%emt 0:00:31]} 7. Nf3 {[%emt 0:00:37]} e6 {[%emt 0:01:00]} 8. Qe2 {[%emt 0:00:32]} Bd6 {[%emt 0:01:04]} 9. O-O-O {[%emt 0:02:02]} O-O {[%emt 0:01:08]} 10. Nd5 {[%emt 0:05:22]} Qd8 {[%emt 0:00:47]} 11. Nxf6+ {[%emt 0:03:44]} Qxf6 {[%emt 0:00:59]} 12. Bg5 {[%emt 0:00:20]} Qg6 {[%emt 0:00:39]} 13. Rdg1 {[%emt 0:17:26]} Bg4 {[%emt 0:05:26]} 14. Qe3 {[%emt 0:07:22]} h6 {[%emt 0:07:19]} 15. Bf4 {[%emt 0:02:01]} Bxf4 {[%emt 0:01:27]} 16. Qxf4 {[%emt 0:00:06]} Bf5 {[%emt 0:08:09]} 17. Ne5 {[%emt 0:02:57]} Qg5 {[%emt 0:03:24]} 18. Qxg5 {[%emt 0:00:59]} hxg5 {[%emt 0:00:08]} 19. c3 {[%emt 0:07:17]} Rd8 {[%emt 0:02:10]} 20. h4 {[%emt 0:05:34]} g4 {[%emt 0:03:22]} 21. Be2 {[%emt 0:01:35]} Nd7 {[%emt 0:09:10]} 22. Nxg4 {[%emt 0:01:03]} Bxg4 {[%emt 0:01:33]} 23. Bxg4 {[%emt 0:00:07]} Kf8 {[%emt 0:01:32]} 24. h5 {[%emt 0:00:46]} Ke7 {[%emt 0:01:49]} 25. Re1 {[%emt 0:02:03]} Nf6 {[%emt 0:00:53]} 26. Bf3 {[%emt 0:00:27]} Rac8 {[%emt 0:01:09]} 27. Re5 {[%emt 0:06:12]} Kd7 {[%emt 0:02:31]} 28. Rg5 {[%emt 0:01:43]} Rg8 {[%emt 0:02:28]} 29. Rh3 {[%emt 0:03:09]} Nh7 {[%emt 0:03:34]} 30. Re5 {[%emt 0:00:19]} Kc7 {[%emt 0:02:24]} 31. Rg3 {[%emt 0:03:33]} b5 {[%emt 0:04:00]} 32. Be4 {[%emt 0:03:17]} Ng5 {[%emt 0:06:35]} 33. Rexg5 {[%emt 0:02:36]} f5 {[%emt 0:06:20]} 34. Rxg7+ {[%emt 0:00:32]} Rxg7 {[%emt 0:00:16]} 35. Rxg7+ {[%emt 0:00:10]} Kb6 {[%emt 0:00:14]} 36. Bf3 {[%emt 0:00:44]} Re8 {[%emt 0:00:53]} 37. Rg6 {[%emt 0:00:29]} Ka5 {[%emt 0:01:17]} 38. h6 {[%emt 0:00:19]} a6 {[%emt 0:00:34]} 39. h7 {[%emt 0:00:13]} Rh8 {[%emt 0:00:14]} 40. Rxe6 {[%emt 0:00:00]} Rxh7 {[%emt 0:00:00]} 41. Rxc6 {[%emt 0:00:45]} Rh1+ {[%emt 0:00:45]} 42. Kc2 {[%emt 0:00:10]} b4 {[%emt 0:00:38]} 43. d5 {[%emt 0:01:09]} bxc3 {[%emt 0:00:24]} 44. Rxc3 {[%emt 0:00:49]} Rh6 {[%emt 0:00:18]} 45. Rc6 {[%emt 0:00:17]} Rh8 {[%emt 0:00:32]} 46. d6 {[%emt 0:00:21]} Rd8 {[%emt 0:00:33]} 47. Kc3 {[%emt 0:00:26]} Kb5 {[%emt 0:00:26]} 48. Kd4 {[%emt 0:00:33]} f4 {[%emt 0:00:31]} 49. Ke5 {[%emt 0:00:38]} Rf8 {[%emt 0:00:31]} 50. d7 {[%emt 0:00:20]} a5 {[%emt 0:00:39]} 51. Rc8 {[%emt 0:00:14]} Rxc8 {[%emt 0:00:38]} 52. dxc8=Q {[%emt 0:00:15]} a4 {[%emt 0:00:11]} 53. Qc6+ {[%emt 0:53:15]} Kb4 {[%emt 0:00:18]} 54. a3+ {[%emt 0:00:00]} Ka5 {[%emt 0:00:17]} 55. Qc3+ {[%emt 0:00:00]} Kb6 {[%emt 0:00:21]} 56. Qb4+ {[%emt 0:00:00]} Kc7 {[%emt 0:00:29]} 57. Qxa4 {[%emt 0:00:00]} Kb6 {[%emt 0:00:15]} 58. b4 {[%emt 0:00:00]} Kc7 {[%emt 0:00:13]} 59. b5 {[%emt 0:00:00]} Kc8 {[%emt 0:00:25]} 60. Kd6 {[%emt 0:00:00]} Kb8 {[%emt 0:00:25]} 61. Qa8# {[%emt 0:00:00]} 1-0